{"text_format":"1","workbook":"xlsx","n_sheets":1,"sheets":["PRESUPUESTO"],"not_rendered":{"charts":0,"images":2,"macros":1,"external_links":28,"defined_names":313,"comments":0,"pivot_tables":0},"unopened":[],"bounds":{"document_bytes":16777216,"sheet_cells":100000,"rows_first":2000,"rows_last":500,"rows_between":2000,"halvings":0,"cell_chars":16384,"cell_head_chars":4096},"cells_cut":0,"cells_raw":0,"read":"whole","date_system":"1900"}

{"sheet":"PRESUPUESTO","index":0,"n_rows":249,"n_cols":7,"rows_kept":249,"cut":false,"hidden":false,"merged":[[250,0,250,6],[251,0,251,6],[252,0,252,6],[14,0,14,6],[15,0,15,6],[16,0,16,6],[18,0,18,6],[22,0,22,6]]}
[null,null,null,"ANCHO",null,10.3]
[null,null,null,"LARGO",null,1025,{"$f":"F1*F2","v":10557.5}]
[null,null,null,"AREA TOTAL",null,{"$f":"+F4+F5+F6","v":12858.98}]
[null,null,null,"CARPETA ASFALTICA 6CM",null,{"$f":"G2-(10.3*80.5)-(10.3*91.8)","v":8782.81}]
[null,null,null,"CONCRETO HIDRAULICO 20 CM",null,{"$f":"(21.1*80.5)","v":1698.5500000000002},"(VADO 2)"]
[null,null,null,"CONCRETO HIDRAULICO 20 CM",null,{"$f":"(25.9*91.8)","v":2377.62},"(VADO 3)"]
[]
[null,null,null,"ANCHO",null,14,"ALTAMIRA"]
[null,null,null,"LARGO",null,50,{"$f":"F8*F9","v":700}]
[null,null,null,"AREA TOTAL",null,{"$f":"F8*F9","v":700}]
[null,null,null,"CARPETA ASFALTICA 6CM",null,{"$f":"F10","v":700}]
[]
[]
[]
["H. XVIII AYUNTAMIENTO DE LA PAZ"]
["DIRECCIÓN GENERAL DE GESTIÓN INTEGRAL DE LA CIUDAD"]
["DIRECCION DE OBRAS PUBLICAS"]
[]
["CATALOGO DE CONCEPTOS"]
[]
["LICITANTE:",null,null,null,null,null,"FECHA DEL CONCURSO:"]
["No. DE OBRA:   FIEU202422"]
["OBRA:   OBRAS PARA LA MOVILIDAD SEGURA EN CALLES PRINCIPALES DE LA CIUDAD DE LA PAZ"]
[]
["CLAVE","CONCEPTO","UNIDAD","CANTIDAD","PRECIO UNITARIO","PRECIO UNITARIO CON LETRA","IMPORTE"]
["I","PRELIMINARES"]
["l.1","FABRICACION E INSTALACION DE LETRERO DE OBRA DE 1.22 X 2.44 MTS., DE LONA IMPRESA EN VINIL CON LETRERO INFORMATIVO DE OBRA Y LOGO DE LA INSTITUCION, CON OJILLOS A CADA 30CM, HILO NYLON PARA SUJETAR LA LONA EN EL BASTIDOR; BASTIDOR FABRICADO CON PERFIL C-200, CAL. 14 CON PINTURA ANTICORROSIVA Y PINTURA ESMALTE, POSTES ANCLADOS EN DADOS DE 30X30X80 CM DE CONCRETO F'C=200KG/CM2 CONTRA EXCAVACION; INCLUYE: SUMINISTRO DE TODOS LOS MATERIALES, HERRAMIENTA, EQUIPO Y MANO DE OBRA (VER DETALLE EN PLANO).","PZA",1,null,null,{"$f":"D27*F27","v":0}]
[1,"CARRETERA ESCÉNICA Y PALMIRA (MALECÓN)"]
["A","REDUCTOR DE VELOCIDAD TIPO MODULAR"]
["A.1","SUMINISTRO Y COLOCACIÓN DE MÓDULOS DE REDUCTOR DE VELOCIDAD CON MEDIDAS DE 40x40x5cm DE MATERIAL DE PLASTICO,INCLUYE: MANO DE OBRA, MATERIAL, EQUIPO Y HERRAMIENTA PARA SU CORRECTA INSTALACION. P.U.O.T.","PZA",49,null,null,{"$f":"ROUND(F30*D30,2)","v":0}]
["A.1","SUMINISTRO Y COLOCACIÓN DE MÓDULOS DE REDUCTOR DE VELOCIDAD (REMATES) CON MEDIDAS DE 40x20x5cm DE MATERIAL DE PLASTICO,INCLUYE: MANO DE OBRA,  MATERIAL, EQUIPO Y HERRAMIENTA PARA SU CORRECTA INSTALACION. P.U.O.T.","PZA",4,null,null,{"$f":"ROUND(F31*D31,2)","v":0}]
["B","SEÑALAMIENTO VERTICAL"]
["B.1","SUMINISTRO E INSTALACION DE SEÑALAMIENTO TIPO SP-41 CON DIMENSIONES DE 71x71cm CON LAMINA GALVANIZADA CALIBRE 16, INCLUYE: MANO DE OBRA, MATERIALES,  EQUIPO  Y HERRAMIENTA NECESARIA PARA LA CORRECTA INSTALACIÓN. P.U.O.T.","PZA",8,null,null,{"$f":"ROUND(F33*D33,2)","v":0}]
["B.2","SUMINISTRO E INSTALACION DE SEÑALAMIENTO TIPO SP-41B CON DIMENSIONES DE 71x71cm CON LAMINA GALVANIZADA CALIBRE 16, INCLUYE: MANO DE OBRA, MATERIALES,  EQUIPO  Y HERRAMIENTA NECESARIA PARA LA CORRECTA INSTALACIÓN P.U.O.T.","PZA",4,null,null,{"$f":"ROUND(F34*D34,2)","v":0}]
["B.3","SUMINISTRO E INSTALACION DE SEÑALAMIENTO TIPO SR-9 (50 KM/HR) CON DIMENSIONES DE 71x71cm CON LAMINA GALVANIZADA CALIBRE 16,  INCLUYE: MANO DE OBRA, MATERIALES,  EQUIPO  Y HERRAMIENTA NECESARIA PARA LA CORRECTA INSTALACIÓN P.U.O.T.","PZA",4,null,null,0]
["B.4","SUMINISTRO E INSTALACION DE SEÑALAMIENTO TIPO SR-9 (30 KM/HR) CON DIMENSIONES DE 71x71cm CON LAMINA GALVANIZADA CALIBRE 16,  INCLUYE: MANO DE OBRA, MATERIALES,  EQUIPO  Y HERRAMIENTA NECESARIA PARA LA CORRECTA INSTALACIÓN P.U.O.T.","PZA",4,null,null,0]
["B.5","SUMINISTRO E INSTALACION DE SEÑALAMIENTO TIPO SP-12 CON DIMENSIONES DE 71x71cm CON LAMINA GALVANIZADA CALIBRE 16,  INCLUYE: MANO DE OBRA, MATERIALES,  EQUIPO  Y HERRAMIENTA NECESARIA PARA LA CORRECTA INSTALACIÓN P.U.O.T.","PZA",4,null,null,0]
["B.6","SUMINISTRO E INSTALACION DE SEÑALAMIENTO TIPO SP-12A CON DIMENSIONES DE 71x71cm CON LAMINA GALVANIZADA CALIBRE 16,  INCLUYE: MANO DE OBRA, MATERIALES,  EQUIPO  Y HERRAMIENTA NECESARIA PARA LA CORRECTA INSTALACIÓN P.U.O.T.","PZA",4,null,null,0]
["B.7","SUMINISTRO E INSTALACION DE SEÑALAMIENTO TIPO SP-A CON DIMENSIONES DE 100x25cm CON LAMINA GALVANIZADA CALIBRE 16,  INCLUYE: MANO DE OBRA, MATERIALES,  EQUIPO  Y HERRAMIENTA NECESARIA PARA LA CORRECTA INSTALACIÓN P.U.O.T.","PZA",16,null,null,{"$f":"ROUND(F39*D39,2)","v":0}]
["C","SEÑALAMIENTO HORIZONTAL"]
["C.1","RAYAS CON ESPACIAMIENTO LOGARITMICO REALZADAS CON MEZCLA ASFÁLTICA Y PINTADAS  M-9 TIPO 20/13 COLOR BLANCO CON ANCHO DE 60 CM Y 1 CM DE ESPESOR EN AMBOS SENTIDOS DE CIRCULACION PREVIO AL REDUCTOR DE VELOCIDAD, INCLUYE: MANO DE OBRA, HERRAMIENTA, EQUIPO MENOR ASI COMO EL EQUIPO NECESARIO  PARA SU CORRECTA INSTALACIÓN. P.U.O.T.","ML",{"$f":"11.7*13+10.6*13","v":289.89999999999998},null,null,0]
["C.2","RAYA SEPARADORA DE SENTIDOS DE CIRCULACIÓN M-1.1 COLOR AMARILLO CON ANCHO DE 10 cm EN AMBOS SENTIDOS DE CIRCULACION, INCLUYE: MANO DE OBRA, EQUIPO, HERRAMIENTA, ASI COMO EL EQUIPO NECESARIO PARA SU CORRECTA INSTALACIÓN, P.U.O.T.","ML",600,null,null,0]
["C.3","RAYA SEPARADORA DE CARRIL M-2.3 COLOR BLANCO CON ANCHO DE 10 cm EN AMBOS SENTIDOS DE CIRCULACION, INCLUYE: MANO DE OBRA, EQUIPO, HERRAMIENTA, ASI COMO EL EQUIPO NECESARIO PARA SU CORRECTA INSTALACIÓN, P.U.O.T.","ML",600,null,null,0]
["C.4","RAYA A LA ORILLA DERECHA M-3.1 COLOR BLANCO CON ANCHO DE 10 cm EN AMBOS SENTIDOS DE CIRCULACION, INCLUYE: MANO DE OBRA, EQUIPO, HERRAMIENTA, ASI COMO EL EQUIPO NECESARIO PARA SU CORRECTA INSTALACIÓN, P.U.O.T.","ML",600,null,null,0]
["C.5","BOTÓN REFLEJANTE SOBRE EL PAVIMENTO (VIALETA) DE 10X10CM COLOR AMARILLO EN DOS CARAS BRM-A2 SOBRE RAYA M-1.1, FIJADO CON PEGAMENTO EPÓXICO PARA VIALETAS. INCLUYE: MANO DE OBRA, EQUIPO, HERRAMIENTA, ASI COMO EL EQUIPO NECESARIO PARA SU CORRECTA INSTALACIÓN, P.U.O.T.","PZA",{"$f":"D42/15+2","v":42},null,null,0]
["C.6","BOTÓN REFLEJANTE SOBRE EL PAVIMENTO (VIALETA) DE 10X10CM COLOR BLANCO EN UNA CARA BRM-B1 SOBRE RAYA M-2.3, FIJADO CON PEGAMENTO EPÓXICO PARA VIALETAS.  INCLUYE: MANO DE OBRA, EQUIPO, HERRAMIENTA, ASI COMO EL EQUIPO NECESARIO PARA SU CORRECTA INSTALACIÓN, P.U.O.T.","PZA",{"$f":"D43/30+2","v":22},null,null,{"$f":"ROUND(F46*D46,2)","v":0}]
["C.7","BOTÓN REFLEJANTE SOBRE EL PAVIMENTO (VIALETA) DE 10X10CM COLOR BLANCO EN UNA CARA BRM-B1 SOBRE RAYA M-3.1,FIJADO CON PEGAMENTO EPÓXICO PARA VIALETAS.  INCLUYE: MANO DE OBRA, EQUIPO, HERRAMIENTA, ASI COMO EL EQUIPO NECESARIO PARA SU CORRECTA INSTALACIÓN, P.U.O.T.","PZA",{"$f":"D44/30+2","v":22},null,null,{"$f":"ROUND(F47*D47,2)","v":0}]
["C.8","SUMINISTRO Y APLICACIÓN DE PINTURA VINILICA AHULADA, EN COLOR ROJO A DOS MANOS EN GUANICIÓN  DE CONCRETO EXISTENTE, LADO DERECHO, INCLUYE: PREPARACION DE LA SUPERFICIE, LIMPIEZA, MATERIALES, MANO DE OBRA Y HERRAMIENTA, ASÍ COMO LO NECESARIO PARA SU CORRECTA APLICACIÓN, P.U.O.T.","ML",600,null,null,{"$f":"ROUND(F48*D48,2)","v":0}]
["C.9","SUMINISTRO Y APLICACIÓN DE PINTURA VINILICA AHULADA, EN COLOR AMARILLO A DOS MANOS EN GUANICIÓN CENTRAL DE CONCRETO EXISTENTE, INCLUYE: PREPARACION DE LA SUPERFICIE, LIMPIEZA, MATERIALES, MANO DE OBRA Y HERRAMIENTA, ASÍ COMO LO NECESARIO PARA SU CORRECTA APLICACIÓN, P.U.O.T.","ML",1200,null,null,{"$f":"ROUND(F49*D49,2)","v":0}]
[2,"CONSTITUYENTES Y PEZ VELA (FIDEPAZ)"]
["A","REDUCTOR DE VELOCIDAD CONCRETO ASFÁLTICO"]
["A.1","CONSTRUCCIÓN DE REDUCTOR DE VELOCIDAD CON MEZCLA ASFÁLTICA EN FRÍO, TIPO TRAPEZOIDAL CON MEDIDAS DE 4.80x10.6x0.12m, PINTADO CON RAYAS DIAGONALES CONFORME A NORMATIVA. INCLUYE: MANO DE OBRA, MATERIAL, EQUIPO Y HERRAMIENTA PARA SU CORRECTA INSTALACION. P.U.O.T.","M3",9.5399999999999991,null,null,{"$f":"ROUND(F52*D52,2)","v":0}]
["B","SEÑALAMIENTO VERTICAL"]
["B.1","SUMINISTRO E INSTALACION DE SEÑALAMIENTO TIPO SP-41 CON DIMENSIONES DE 86x86cm CON LAMINA GALVANIZADA CALIBRE 16, INCLUYE: MANO DE OBRA, MATERIALES,  EQUIPO  Y HERRAMIENTA NECESARIA PARA LA CORRECTA INSTALACIÓN. P.U.O.T.","PZA",8,null,null,{"$f":"ROUND(F54*D54,2)","v":0}]
["B.2","SUMINISTRO E INSTALACION DE SEÑALAMIENTO TIPO SP-41B CON DIMENSIONES DE 86x86cm CON LAMINA GALVANIZADA CALIBRE 16, INCLUYE: MANO DE OBRA, MATERIALES,  EQUIPO  Y HERRAMIENTA NECESARIA PARA LA CORRECTA INSTALACIÓN P.U.O.T.","PZA",4,null,null,{"$f":"ROUND(F55*D55,2)","v":0}]
["B.3","SUMINISTRO E INSTALACION DE SEÑALAMIENTO TIPO SR-9 (50 KM/HR) CON DIMENSIONES DE 86x86cm CON LAMINA GALVANIZADA CALIBRE 16,  INCLUYE: MANO DE OBRA, MATERIALES,  EQUIPO  Y HERRAMIENTA NECESARIA PARA LA CORRECTA INSTALACIÓN P.U.O.T.","PZA",4,null,null,0]
["B.4","SUMINISTRO E INSTALACION DE SEÑALAMIENTO TIPO SR-9 (30 KM/HR) CON DIMENSIONES DE 86x86cm CON LAMINA GALVANIZADA CALIBRE 16,  INCLUYE: MANO DE OBRA, MATERIALES,  EQUIPO  Y HERRAMIENTA NECESARIA PARA LA CORRECTA INSTALACIÓN P.U.O.T.","PZA",4,null,null,0]
["B.5","SUMINISTRO E INSTALACION DE SEÑALAMIENTO TIPO SP-12 CON DIMENSIONES DE 86x86cm CON LAMINA GALVANIZADA CALIBRE 16,  INCLUYE: MANO DE OBRA, MATERIALES,  EQUIPO  Y HERRAMIENTA NECESARIA PARA LA CORRECTA INSTALACIÓN P.U.O.T.","PZA",4,null,null,0]
["B.6","SUMINISTRO E INSTALACION DE SEÑALAMIENTO TIPO SP-12A CON DIMENSIONES DE 86x86cm CON LAMINA GALVANIZADA CALIBRE 16,  INCLUYE: MANO DE OBRA, MATERIALES,  EQUIPO  Y HERRAMIENTA NECESARIA PARA LA CORRECTA INSTALACIÓN P.U.O.T.","PZA",4,null,null,0]
["B.7","SUMINISTRO E INSTALACION DE SEÑALAMIENTO TIPO SP-A CON DIMENSIONES DE 122x30cm CON LAMINA GALVANIZADA CALIBRE 16,  INCLUYE: MANO DE OBRA, MATERIALES,  EQUIPO  Y HERRAMIENTA NECESARIA PARA LA CORRECTA INSTALACIÓN P.U.O.T.","PZA",16,null,null,0]
["C","SEÑALAMIENTO HORIZONTAL"]
["C.1","RAYAS CON ESPACIAMIENTO LOGARITMICO REALZADAS CON MEZCLA ASFÁLTICA Y PINTADAS  M-9 TIPO 20/13 COLOR BLANCO CON ANCHO DE 60 CM Y 1 CM DE ESPESOR EN AMBOS SENTIDOS DE CIRCULACION PREVIO AL REDUCTOR DE VELOCIDAD, INCLUYE: MANO DE OBRA, HERRAMIENTA, EQUIPO MENOR ASI COMO EL EQUIPO NECESARIO  PARA SU CORRECTA INSTALACIÓN. P.U.O.T.","ML",{"$f":"10.6*13","v":137.79999999999998},null,null,{"$f":"ROUND(F62*D62,2)","v":0}]
["C.2","RAYA SEPARADORA DE SENTIDOS DE CIRCULACIÓN M-1.1 COLOR AMARILLO CON ANCHO DE 15 cm EN AMBOS SENTIDOS DE CIRCULACION, INCLUYE: MANO DE OBRA, EQUIPO, HERRAMIENTA, ASI COMO EL EQUIPO NECESARIO PARA SU CORRECTA INSTALACIÓN, P.U.O.T.","ML",600,null,null,0]
["C.3","RAYA SEPARADORA DE CARRIL M-2.3 COLOR BLANCO CON ANCHO DE 15 cm EN AMBOS SENTIDOS DE CIRCULACION, INCLUYE: MANO DE OBRA, EQUIPO, HERRAMIENTA, ASI COMO EL EQUIPO NECESARIO PARA SU CORRECTA INSTALACIÓN, P.U.O.T.","ML",600,null,null,0]
["C.4","RAYA A LA ORILLA DERECHA M-3.1 COLOR BLANCO CON ANCHO DE 15 cm EN AMBOS SENTIDOS DE CIRCULACION, INCLUYE: MANO DE OBRA, EQUIPO, HERRAMIENTA, ASI COMO EL EQUIPO NECESARIO PARA SU CORRECTA INSTALACIÓN, P.U.O.T.","ML",600,null,null,0]
["C.5","BOTÓN REFLEJANTE SOBRE EL PAVIMENTO (VIALETA) DE 10X10CM COLOR AMARILLO EN DOS CARAS BRM-A2 SOBRE RAYA M-1.1, FIJADO CON PEGAMENTO EPÓXICO PARA VIALETAS. INCLUYE: MANO DE OBRA, EQUIPO, HERRAMIENTA, ASI COMO EL EQUIPO NECESARIO PARA SU CORRECTA INSTALACIÓN, P.U.O.T.","PZA",{"$f":"D63/15+2","v":42},null,null,0]
["C.6","BOTÓN REFLEJANTE SOBRE EL PAVIMENTO (VIALETA) DE 10X10CM COLOR BLANCO EN UNA CARA BRM-B1 SOBRE RAYA M-2.3, FIJADO CON PEGAMENTO EPÓXICO PARA VIALETAS.  INCLUYE: MANO DE OBRA, EQUIPO, HERRAMIENTA, ASI COMO EL EQUIPO NECESARIO PARA SU CORRECTA INSTALACIÓN, P.U.O.T.","PZA",{"$f":"D64/30+2","v":22},null,null,0]
["C.7","BOTÓN REFLEJANTE SOBRE EL PAVIMENTO (VIALETA) DE 10X10CM COLOR BLANCO EN UNA CARA BRM-B1 SOBRE RAYA M-3.1,FIJADO CON PEGAMENTO EPÓXICO PARA VIALETAS.  INCLUYE: MANO DE OBRA, EQUIPO, HERRAMIENTA, ASI COMO EL EQUIPO NECESARIO PARA SU CORRECTA INSTALACIÓN, P.U.O.T.","PZA",{"$f":"D65/30+2","v":22},null,null,0]
["C.8","SUMINISTRO Y APLICACIÓN DE PINTURA VINILICA AHULADA, EN COLOR BLANCO A DOS MANOS EN GUANICIÓN  DE CONCRETO EXISTENTE LADO DERECHO, INCLUYE: PREPARACION DE LA SUPERFICIE, LIMPIEZA, MATERIALES, MANO DE OBRA Y HERRAMIENTA, ASÍ COMO LO NECESARIO PARA SU CORRECTA APLICACIÓN, P.U.O.T.","ML",600,null,null,0]
["C.9","SUMINISTRO Y APLICACIÓN DE PINTURA VINILICA AHULADA, EN COLOR AMARILLO A DOS MANOS EN GUANICIÓN CENTRAL EXISTENTE DE CONCRETO, INCLUYE: PREPARACION DE LA SUPERFICIE, LIMPIEZA, MATERIALES, MANO DE OBRA Y HERRAMIENTA, ASÍ COMO LO NECESARIO PARA SU CORRECTA APLICACIÓN, P.U.O.T.","ML",1200,null,null,0]
["D","GUARNICIONES"]
["D.1","CONSTRUCCION DE GUARNICION DENTADA DE CONCRETO F´c=150 kg/cm2. R.N. T.M.A. 19 MM. DE 15X20X40 @60 CM INTERMITENTE, DE SECCION TRAPEZOIDAL, CORTE DE JUNTAS VERTICALES CON CORTADORA DE DISCO DE DIAMANTE A UNA PROFUNDIDAD DE 1/3 DEL PERALTE DE LA GUARNICION DENTADA, LA MODULACION SERÁ INDICADA POR SUPERVISIÓN, SELLADO DE LA JUNTA CON CINTILLA DE POLIETILENO Y SELLADOR AUTONIVELANTE A BASE DE  POLIURETANO-ASFALTO TIPO SONOMERIC 1 Ó SIMILAR. SUMINISTRO Y APLICACIÓN DE PINTURA VINILICA AHULADA, EN COLOR BLANCO A DOS MANOS EN GUANICIÓN DENTADA. INCLUYE: CIMBRA, DESCIMBRADO, ELABORACION, COLADO, VIBRADO Y CURADO DEL CONCRETO, TRANSPORTE A LA SIGUIENTE POSICION, EQUIPO, HERRAMIENTA, MANO DE OBRA Y TODO LO NECESARIO PARA LA CORRECTA EJECUCIÓN DE LOS TRABAJOS. P.U.O.T.","ML",102,null,null,{"$f":"ROUND(F72*D72,2)","v":0}]
[3,"LIBRAMIENTO OCEGUERA Y CALAFIA (CERRO ATRAVESADO)"]
["A","REDUCTOR DE VELOCIDAD CONCRETO ASFÁLTICO"]
["A.1","CONSTRUCCIÓN DE REDUCTOR DE VELOCIDAD CON MEZCLA ASFÁLTICA EN FRÍO, TIPO TRAPEZOIDAL CON MEDIDAS DE 4.80x10.6x0.12m, PINTADO CON RAYAS DIAGONALES CONFORME A NORMATIVA. INCLUYE: MANO DE OBRA, MATERIAL, EQUIPO Y HERRAMIENTA PARA SU CORRECTA INSTALACION. P.U.O.T.","M3",13.32,null,null,{"$f":"ROUND(F75*D75,2)","v":0}]
["B","SEÑALAMIENTO VERTICAL"]
["B.1","SUMINISTRO E INSTALACION DE SEÑALAMIENTO TIPO SP-41 CON DIMENSIONES DE 71x71cm CON LAMINA GALVANIZADA CALIBRE 16, INCLUYE: MANO DE OBRA, MATERIALES,  EQUIPO  Y HERRAMIENTA NECESARIA PARA LA CORRECTA INSTALACIÓN. P.U.O.T.","PZA",4,null,null,{"$f":"ROUND(F77*D77,2)","v":0}]
["B.2","SUMINISTRO E INSTALACION DE SEÑALAMIENTO TIPO SP-41B CON DIMENSIONES DE 71x71cm CON LAMINA GALVANIZADA CALIBRE 16, INCLUYE: MANO DE OBRA, MATERIALES,  EQUIPO  Y HERRAMIENTA NECESARIA PARA LA CORRECTA INSTALACIÓN P.U.O.T.","PZA",2,null,null,{"$f":"ROUND(F78*D78,2)","v":0}]
["B.3","SUMINISTRO E INSTALACION DE SEÑALAMIENTO TIPO SR-9 (50 KM/HR) CON DIMENSIONES DE 71x71cm CON LAMINA GALVANIZADA CALIBRE 16,  INCLUYE: MANO DE OBRA, MATERIALES,  EQUIPO  Y HERRAMIENTA NECESARIA PARA LA CORRECTA INSTALACIÓN P.U.O.T.","PZA",2,null,null,0]
["B.4","SUMINISTRO E INSTALACION DE SEÑALAMIENTO TIPO SR-9 (30 KM/HR) CON DIMENSIONES DE 71x71cm CON LAMINA GALVANIZADA CALIBRE 16,  INCLUYE: MANO DE OBRA, MATERIALES,  EQUIPO  Y HERRAMIENTA NECESARIA PARA LA CORRECTA INSTALACIÓN P.U.O.T.","PZA",2,null,null,0]
["B.5","SUMINISTRO E INSTALACION DE SEÑALAMIENTO TIPO SP-12 CON DIMENSIONES DE 71x71cm CON LAMINA GALVANIZADA CALIBRE 16,  INCLUYE: MANO DE OBRA, MATERIALES,  EQUIPO  Y HERRAMIENTA NECESARIA PARA LA CORRECTA INSTALACIÓN P.U.O.T.","PZA",2,null,null,0]
["B.6","SUMINISTRO E INSTALACION DE SEÑALAMIENTO TIPO SP-12A CON DIMENSIONES DE 71x71cm CON LAMINA GALVANIZADA CALIBRE 16,  INCLUYE: MANO DE OBRA, MATERIALES,  EQUIPO  Y HERRAMIENTA NECESARIA PARA LA CORRECTA INSTALACIÓN P.U.O.T.","PZA",2,null,null,0]
["B.7","SUMINISTRO E INSTALACION DE SEÑALAMIENTO TIPO SP-A CON DIMENSIONES DE 100x25cm CON LAMINA GALVANIZADA CALIBRE 16,  INCLUYE: MANO DE OBRA, MATERIALES,  EQUIPO  Y HERRAMIENTA NECESARIA PARA LA CORRECTA INSTALACIÓN P.U.O.T.","PZA",8,null,null,0]
["C","SEÑALAMIENTO HORIZONTAL"]
["C.1","RAYAS CON ESPACIAMIENTO LOGARITMICO REALZADAS CON MEZCLA ASFÁLTICA Y PINTADAS  M-9 TIPO 20/13 COLOR BLANCO CON ANCHO DE 60 CM Y 1 CM DE ESPESOR EN AMBOS SENTIDOS DE CIRCULACION PREVIO AL REDUCTOR DE VELOCIDAD, INCLUYE: MANO DE OBRA, HERRAMIENTA, EQUIPO MENOR ASI COMO EL EQUIPO NECESARIO  PARA SU CORRECTA INSTALACIÓN. P.U.O.T.","ML",{"$f":"7.4*33","v":244.20000000000002},null,null,{"$f":"ROUND(F85*D85,2)","v":0}]
["C.2","RAYA SEPARADORA DE SENTIDOS DE CIRCULACIÓN M-1.1 COLOR AMARILLO CON ANCHO DE 15 cm EN AMBOS SENTIDOS DE CIRCULACION, INCLUYE: MANO DE OBRA, EQUIPO, HERRAMIENTA, ASI COMO EL EQUIPO NECESARIO PARA SU CORRECTA INSTALACIÓN, P.U.O.T.","ML",900,null,null,{"$f":"ROUND(F86*D86,2)","v":0}]
["C.3","RAYA A LA ORILLA DERECHA M-3.1 COLOR BLANCO CON ANCHO DE 15 cm EN AMBOS SENTIDOS DE CIRCULACION, INCLUYE: MANO DE OBRA, EQUIPO, HERRAMIENTA, ASI COMO EL EQUIPO NECESARIO PARA SU CORRECTA INSTALACIÓN, P.U.O.T.","ML",1800,null,null,{"$f":"ROUND(F87*D87,2)","v":0}]
["C.4","BOTÓN REFLEJANTE SOBRE EL PAVIMENTO (VIALETA) DE 10X10CM COLOR AMARILLO EN DOS CARAS BRM-A2 SOBRE RAYA M-1.1, FIJADO CON PEGAMENTO EPÓXICO PARA VIALETAS. INCLUYE: MANO DE OBRA, EQUIPO, HERRAMIENTA, ASI COMO EL EQUIPO NECESARIO PARA SU CORRECTA INSTALACIÓN, P.U.O.T.","PZA",{"$f":"D86/15+2","v":62},null,null,{"$f":"ROUND(F88*D88,2)","v":0}]
["C.5","BOTÓN REFLEJANTE SOBRE EL PAVIMENTO (VIALETA) DE 10X10CM COLOR BLANCO EN UNA CARA BRM-B1 SOBRE RAYA M-3.1,FIJADO CON PEGAMENTO EPÓXICO PARA VIALETAS.  INCLUYE: MANO DE OBRA, EQUIPO, HERRAMIENTA, ASI COMO EL EQUIPO NECESARIO PARA SU CORRECTA INSTALACIÓN, P.U.O.T.","PZA",{"$f":"D87/30+2","v":62},null,null,{"$f":"ROUND(F89*D89,2)","v":0}]
[4,"LIBRAMIENTO DANIEL ROLDÁN Y BLVD. FORJADORES DE SUDCALIFORNIA"]
["D","GUARNICIONES"]
["D.1","CONSTRUCCION DE GUARNICIÓN DE CONCRETO F´c=150 kg/cm2. R.N. T.M.A. 19 MM. DE 15X20X40cm  DE SECCION TRAPEZOIDAL, CORTE DE JUNTAS VERTICALES CON CORTADORA DE DISCO DE DIAMANTE A UNA PROFUNDIDAD DE 1/3 DEL PERALTE DE LA GUARNICION, LA MODULACION SERÁ INDICADA POR SUPERVISIÓN, SELLADO DE LA JUNTA CON CINTILLA DE POLIETILENO Y SELLADOR AUTONIVELANTE A BASE DE  POLIURETANO-ASFALTO TIPO SONOMERIC 1 Ó SIMILAR. SUMINISTRO Y APLICACIÓN DE PINTURA VINILICA AHULADA, EN COLOR AMARILLO A DOS MANOS EN GUANICIÓN. INCLUYE: CIMBRA, DESCIMBRADO, ELABORACION, COLADO, VIBRADO Y CURADO DEL CONCRETO, TRANSPORTE A LA SIGUIENTE POSICION, EQUIPO, HERRAMIENTA, MANO DE OBRA Y TODO LO NECESARIO PARA LA CORRECTA EJECUCIÓN DE LOS TRABAJOS. P.U.O.T.","ML",134,null,null,{"$f":"ROUND(F92*D92,2)","v":0}]
[5,"PARQUE CALLE REGIDORES. LÁZARO CÁRDENAS"]
["A","REDUCTOR DE VELOCIDAD CONCRETO ASFÁLTICO"]
["A.1","CONSTRUCCIÓN DE REDUCTOR DE VELOCIDAD CON MEZCLA ASFÁLTICA EN FRÍO, TIPO TRAPEZOIDAL CON MEDIDAS DE 4.80x10.6x0.12m, PINTADO CON RAYAS DIAGONALES CONFORME A NORMATIVA. INCLUYE: MANO DE OBRA, MATERIAL, EQUIPO Y HERRAMIENTA PARA SU CORRECTA INSTALACION. P.U.O.T.","M3",{"$f":"5.4+6.75","v":12.15},null,null,{"$f":"ROUND(F95*D95,2)","v":0}]
["B","SEÑALAMIENTO VERTICAL"]
["B.1","SUMINISTRO E INSTALACION DE SEÑALAMIENTO TIPO SP-41 CON DIMENSIONES DE 61x61cm CON LAMINA GALVANIZADA CALIBRE 16, INCLUYE: MANO DE OBRA, MATERIALES,  EQUIPO  Y HERRAMIENTA NECESARIA PARA LA CORRECTA INSTALACIÓN. P.U.O.T.","PZA",2,null,null,{"$f":"ROUND(F97*D97,2)","v":0}]
["B.2","SUMINISTRO E INSTALACION DE SEÑALAMIENTO TIPO SP-41B CON DIMENSIONES DE 61x61cm CON LAMINA GALVANIZADA CALIBRE 16, INCLUYE: MANO DE OBRA, MATERIALES,  EQUIPO  Y HERRAMIENTA NECESARIA PARA LA CORRECTA INSTALACIÓN P.U.O.T.","PZA",2,null,null,{"$f":"ROUND(F98*D98,2)","v":0}]
["B.3","SUMINISTRO E INSTALACION DE SEÑALAMIENTO TIPO SP-A CON DIMENSIONES DE 85x20cm CON LAMINA GALVANIZADA CALIBRE 16,  INCLUYE: MANO DE OBRA, MATERIALES,  EQUIPO  Y HERRAMIENTA NECESARIA PARA LA CORRECTA INSTALACIÓN P.U.O.T.","PZA",2,null,null,{"$f":"ROUND(F99*D99,2)","v":0}]
["C","SEÑALAMIENTO HORIZONTAL"]
["C.1","RAYA SEPARADORA DE SENTIDOS DE CIRCULACIÓN M-1.1 COLOR AMARILLO CON ANCHO DE 15 cm EN AMBOS SENTIDOS DE CIRCULACION, INCLUYE: MANO DE OBRA, EQUIPO, HERRAMIENTA, ASI COMO EL EQUIPO NECESARIO PARA SU CORRECTA INSTALACIÓN, P.U.O.T.","ML",150,null,null,{"$f":"ROUND(F101*D101,2)","v":0}]
["C.2","RAYA A LA ORILLA DERECHA M-3.1 COLOR BLANCO CON ANCHO DE 15 cm EN AMBOS SENTIDOS DE CIRCULACION, INCLUYE: MANO DE OBRA, EQUIPO, HERRAMIENTA, ASI COMO EL EQUIPO NECESARIO PARA SU CORRECTA INSTALACIÓN, P.U.O.T.","ML",150,null,null,0]
["C.3","BOTÓN REFLEJANTE SOBRE EL PAVIMENTO (VIALETA) DE 10X10CM COLOR AMARILLO EN DOS CARAS BRM-A2 SOBRE RAYA M-1.1, FIJADO CON PEGAMENTO EPÓXICO PARA VIALETAS. INCLUYE: MANO DE OBRA, EQUIPO, HERRAMIENTA, ASI COMO EL EQUIPO NECESARIO PARA SU CORRECTA INSTALACIÓN, P.U.O.T.","PZA",{"$f":"D101/15+2","v":12},null,null,0]
["C.4","BOTÓN REFLEJANTE SOBRE EL PAVIMENTO (VIALETA) DE 10X10CM COLOR BLANCO EN UNA CARA BRM-B1 SOBRE RAYA M-3.1,FIJADO CON PEGAMENTO EPÓXICO PARA VIALETAS.  INCLUYE: MANO DE OBRA, EQUIPO, HERRAMIENTA, ASI COMO EL EQUIPO NECESARIO PARA SU CORRECTA INSTALACIÓN, P.U.O.T.","PZA",{"$f":"D102/30+2","v":7},null,null,0]
["C.5","SUMINISTRO Y APLICACIÓN DE PINTURA VINILICA AHULADA, EN COLOR BLANCO A DOS MANOS EN GUANICIÓN  DE CONCRETO EXISTENTE LADO DERECHO, INCLUYE: PREPARACION DE LA SUPERFICIE, LIMPIEZA, MATERIALES, MANO DE OBRA Y HERRAMIENTA, ASÍ COMO LO NECESARIO PARA SU CORRECTA APLICACIÓN, P.U.O.T.","ML",150,null,null,0]
["C.6","SUMINISTRO Y APLICACIÓN DE PINTURA VINILICA AHULADA, EN COLOR AMARILLO A DOS MANOS EN GUANICIÓN CENTRAL EXISTENTE DE CONCRETO, INCLUYE: PREPARACION DE LA SUPERFICIE, LIMPIEZA, MATERIALES, MANO DE OBRA Y HERRAMIENTA, ASÍ COMO LO NECESARIO PARA SU CORRECTA APLICACIÓN, P.U.O.T.","ML",150,null,null,0]
["D","GUARNICIONES"]
["D.1","CONSTRUCCION DE GUARNICIÓN DE CONCRETO F´c=150 kg/cm2. R.N. T.M.A. 19 MM. DE 15X20X40cm  DE SECCION TRAPEZOIDAL, CORTE DE JUNTAS VERTICALES CON CORTADORA DE DISCO DE DIAMANTE A UNA PROFUNDIDAD DE 1/3 DEL PERALTE DE LA GUARNICION, LA MODULACION SERÁ INDICADA POR SUPERVISIÓN, SELLADO DE LA JUNTA CON CINTILLA DE POLIETILENO Y SELLADOR AUTONIVELANTE A BASE DE  POLIURETANO-ASFALTO TIPO SONOMERIC 1 Ó SIMILAR. SUMINISTRO Y APLICACIÓN DE PINTURA VINILICA AHULADA, EN COLOR AMARILLO A DOS MANOS EN GUANICIÓN. INCLUYE: CIMBRA, DESCIMBRADO, ELABORACION, COLADO, VIBRADO Y CURADO DEL CONCRETO, TRANSPORTE A LA SIGUIENTE POSICION, EQUIPO, HERRAMIENTA, MANO DE OBRA Y TODO LO NECESARIO PARA LA CORRECTA EJECUCIÓN DE LOS TRABAJOS. P.U.O.T.","ML",57,null,null,{"$f":"ROUND(F108*D108,2)","v":0}]
[6,"OCEANO ATLÁNTICO Y MAR MEDITERRÁNEO (CONCHALITO)"]
["A","REDUCTOR DE VELOCIDAD CONCRETO ASFÁLTICO"]
["A.1","CONSTRUCCIÓN DE REDUCTOR DE VELOCIDAD CON MEZCLA ASFÁLTICA EN FRÍO, TIPO TRAPEZOIDAL CON MEDIDAS DE 4.80x10.6x0.12m, PINTADO CON RAYAS DIAGONALES CONFORME A NORMATIVA. INCLUYE: MANO DE OBRA, MATERIAL, EQUIPO Y HERRAMIENTA PARA SU CORRECTA INSTALACION. P.U.O.T.","M3",11.3,null,null,{"$f":"ROUND(F111*D111,2)","v":0}]
["B","SEÑALAMIENTO VERTICAL"]
["B.1","SUMINISTRO E INSTALACION DE SEÑALAMIENTO TIPO SP-41 CON DIMENSIONES DE 61x61cm CON LAMINA GALVANIZADA CALIBRE 16, INCLUYE: MANO DE OBRA, MATERIALES,  EQUIPO  Y HERRAMIENTA NECESARIA PARA LA CORRECTA INSTALACIÓN. P.U.O.T.","PZA",2,null,null,{"$f":"ROUND(F113*D113,2)","v":0}]
["B.2","SUMINISTRO E INSTALACION DE SEÑALAMIENTO TIPO SP-41B CON DIMENSIONES DE 61x61cm CON LAMINA GALVANIZADA CALIBRE 16, INCLUYE: MANO DE OBRA, MATERIALES,  EQUIPO  Y HERRAMIENTA NECESARIA PARA LA CORRECTA INSTALACIÓN P.U.O.T.","PZA",2,null,null,{"$f":"ROUND(F114*D114,2)","v":0}]
["B.7","SUMINISTRO E INSTALACION DE SEÑALAMIENTO TIPO SP-A CON DIMENSIONES DE 85x20cm CON LAMINA GALVANIZADA CALIBRE 16,  INCLUYE: MANO DE OBRA, MATERIALES,  EQUIPO  Y HERRAMIENTA NECESARIA PARA LA CORRECTA INSTALACIÓN P.U.O.T.","PZA",2,null,null,{"$f":"ROUND(F115*D115,2)","v":0}]
["C","SEÑALAMIENTO HORIZONTAL"]
["C.1","RAYA SEPARADORA DE SENTIDOS DE CIRCULACIÓN M-1.1 COLOR AMARILLO CON ANCHO DE 15 cm EN AMBOS SENTIDOS DE CIRCULACION, INCLUYE: MANO DE OBRA, EQUIPO, HERRAMIENTA, ASI COMO EL EQUIPO NECESARIO PARA SU CORRECTA INSTALACIÓN, P.U.O.T.","ML",100,null,null,{"$f":"ROUND(F117*D117,2)","v":0}]
["C.2","RAYA A LA ORILLA DERECHA M-3.1 COLOR BLANCO CON ANCHO DE 15 cm EN AMBOS SENTIDOS DE CIRCULACION, INCLUYE: MANO DE OBRA, EQUIPO, HERRAMIENTA, ASI COMO EL EQUIPO NECESARIO PARA SU CORRECTA INSTALACIÓN, P.U.O.T.","ML",200,null,null,0]
["C.3","BOTÓN REFLEJANTE SOBRE EL PAVIMENTO (VIALETA) DE 10X10CM COLOR AMARILLO EN DOS CARAS BRM-A2 SOBRE RAYA M-1.1, FIJADO CON PEGAMENTO EPÓXICO PARA VIALETAS. INCLUYE: MANO DE OBRA, EQUIPO, HERRAMIENTA, ASI COMO EL EQUIPO NECESARIO PARA SU CORRECTA INSTALACIÓN, P.U.O.T.","PZA",{"$f":"D117/15+2","v":8.6666666666666679},null,null,0]
["C.4","BOTÓN REFLEJANTE SOBRE EL PAVIMENTO (VIALETA) DE 10X10CM COLOR BLANCO EN UNA CARA BRM-B1 SOBRE RAYA M-3.1,FIJADO CON PEGAMENTO EPÓXICO PARA VIALETAS.  INCLUYE: MANO DE OBRA, EQUIPO, HERRAMIENTA, ASI COMO EL EQUIPO NECESARIO PARA SU CORRECTA INSTALACIÓN, P.U.O.T.","PZA",{"$f":"D118/30+2","v":8.6666666666666679},null,null,0]
["C.5","SUMINISTRO Y APLICACIÓN DE PINTURA VINILICA AHULADA, EN COLOR BLANCO A DOS MANOS EN GUANICIÓN  DE CONCRETO EXISTENTE LADO DERECHO, INCLUYE: PREPARACION DE LA SUPERFICIE, LIMPIEZA, MATERIALES, MANO DE OBRA Y HERRAMIENTA, ASÍ COMO LO NECESARIO PARA SU CORRECTA APLICACIÓN, P.U.O.T.","ML",200,null,null,0]
["C.6","SUMINISTRO Y APLICACIÓN DE PINTURA VINILICA AHULADA, EN COLOR AMARILLO A DOS MANOS EN GUANICIÓN CENTRAL EXISTENTE DE CONCRETO, INCLUYE: PREPARACION DE LA SUPERFICIE, LIMPIEZA, MATERIALES, MANO DE OBRA Y HERRAMIENTA, ASÍ COMO LO NECESARIO PARA SU CORRECTA APLICACIÓN, P.U.O.T.","ML",100,null,null,0]
[7,"BLVD. FORJADORES DE SUDCALIFORNIA Y BLEDALES (LA FUENTE)"]
["B","SEÑALAMIENTO VERTICAL"]
["B.1","SUMINISTRO E INSTALACION DE SEÑALAMIENTO TIPO SP-41 CON DIMENSIONES DE 86x86cm CON LAMINA GALVANIZADA CALIBRE 16, INCLUYE: MANO DE OBRA, MATERIALES,  EQUIPO  Y HERRAMIENTA NECESARIA PARA LA CORRECTA INSTALACIÓN. P.U.O.T.","PZA",8,null,null,{"$f":"ROUND(F125*D125,2)","v":0}]
["B.2","SUMINISTRO E INSTALACION DE SEÑALAMIENTO TIPO SP-41B CON DIMENSIONES DE 86x86cm CON LAMINA GALVANIZADA CALIBRE 16, INCLUYE: MANO DE OBRA, MATERIALES,  EQUIPO  Y HERRAMIENTA NECESARIA PARA LA CORRECTA INSTALACIÓN P.U.O.T.","PZA",4,null,null,{"$f":"ROUND(F126*D126,2)","v":0}]
["B.3","SUMINISTRO E INSTALACION DE SEÑALAMIENTO TIPO SR-9 (50 KM/HR) CON DIMENSIONES DE 86x86cm CON LAMINA GALVANIZADA CALIBRE 16,  INCLUYE: MANO DE OBRA, MATERIALES,  EQUIPO  Y HERRAMIENTA NECESARIA PARA LA CORRECTA INSTALACIÓN P.U.O.T.","PZA",4,null,null,0]
["B.4","SUMINISTRO E INSTALACION DE SEÑALAMIENTO TIPO SR-9 (30 KM/HR) CON DIMENSIONES DE 86x86cm CON LAMINA GALVANIZADA CALIBRE 16,  INCLUYE: MANO DE OBRA, MATERIALES,  EQUIPO  Y HERRAMIENTA NECESARIA PARA LA CORRECTA INSTALACIÓN P.U.O.T.","PZA",4,null,null,0]
["B.5","SUMINISTRO E INSTALACION DE SEÑALAMIENTO TIPO SP-12 CON DIMENSIONES DE 86x86cm CON LAMINA GALVANIZADA CALIBRE 16,  INCLUYE: MANO DE OBRA, MATERIALES,  EQUIPO  Y HERRAMIENTA NECESARIA PARA LA CORRECTA INSTALACIÓN P.U.O.T.","PZA",4,null,null,0]
["B.6","SUMINISTRO E INSTALACION DE SEÑALAMIENTO TIPO SP-12A CON DIMENSIONES DE 86x86cm CON LAMINA GALVANIZADA CALIBRE 16,  INCLUYE: MANO DE OBRA, MATERIALES,  EQUIPO  Y HERRAMIENTA NECESARIA PARA LA CORRECTA INSTALACIÓN P.U.O.T.","PZA",4,null,null,0]
["B.7","SUMINISTRO E INSTALACION DE SEÑALAMIENTO TIPO SP-A CON DIMENSIONES DE 122x30cm CON LAMINA GALVANIZADA CALIBRE 16,  INCLUYE: MANO DE OBRA, MATERIALES,  EQUIPO  Y HERRAMIENTA NECESARIA PARA LA CORRECTA INSTALACIÓN P.U.O.T.","PZA",16,null,null,0]
["B.8","SUMINISTRO E INSTALACION DE SEÑALAMIENTO TIPO SR-6 CON DIMENSIONES DE 30cm POR LADO CON LAMINA GALVANIZADA CALIBRE 16, INCLUYE: MANO DE OBRA, MATERIALES,  EQUIPO  Y HERRAMIENTA NECESARIA PARA LA CORRECTA INSTALACIÓN. P.U.O.T.","PZA",1,null,null,{"$f":"ROUND(F132*D132,2)","v":0}]
["B.9","SUMINISTRO E INSTALACION DE SEÑALAMIENTO TIPO SR-11A3 CON DIMENSIONES DE 30cm POR LADO CON LAMINA GALVANIZADA CALIBRE 16, INCLUYE: MANO DE OBRA, MATERIALES,  EQUIPO  Y HERRAMIENTA NECESARIA PARA LA CORRECTA INSTALACIÓN. P.U.O.T.","PZA",2,null,null,{"$f":"ROUND(F133*D133,2)","v":0}]
["B.10","SUMINISTRO E INSTALACION DE SEÑALAMIENTO TIPO SR-14 CON DIMENSIONES DE 30cm POR LADO CON LAMINA GALVANIZADA CALIBRE 16, INCLUYE: MANO DE OBRA, MATERIALES,  EQUIPO  Y HERRAMIENTA NECESARIA PARA LA CORRECTA INSTALACIÓN. P.U.O.T.","PZA",1,null,null,{"$f":"ROUND(F134*D134,2)","v":0}]
["B.11","SUMINISTRO E INSTALACION DE SEÑALAMIENTO TIPO SII-NOMENCLATURA CON LAMINA GALVANIZADA CALIBRE 16, INCLUYE: MANO DE OBRA, MATERIALES,  EQUIPO  Y HERRAMIENTA NECESARIA PARA LA CORRECTA INSTALACIÓN. P.U.O.T.","PZA",4,null,null,{"$f":"ROUND(F135*D135,2)","v":0}]
["C","SEÑALAMIENTO HORIZONTAL"]
["C.1","RAYAS CON ESPACIAMIENTO LOGARITMICO REALZADAS CON MEZCLA ASFÁLTICA Y PINTADAS  M-9 TIPO 30/20 COLOR BLANCO CON ANCHO DE 60 CM Y 1 CM DE ESPESOR EN AMBOS SENTIDOS DE CIRCULACION PREVIO AL REDUCTOR DE VELOCIDAD, INCLUYE: MANO DE OBRA, HERRAMIENTA, EQUIPO MENOR ASI COMO EL EQUIPO NECESARIO  PARA SU CORRECTA INSTALACIÓN. P.U.O.T.","ML",{"$f":"(15.4+16)*20","v":628},null,null,{"$f":"ROUND(F137*D137,2)","v":0}]
["C.2","RAYA SEPARADORA DE SENTIDOS DE CIRCULACIÓN M-1.1 COLOR AMARILLO CON ANCHO DE 15 cm EN AMBOS SENTIDOS DE CIRCULACION, INCLUYE: MANO DE OBRA, EQUIPO, HERRAMIENTA, ASI COMO EL EQUIPO NECESARIO PARA SU CORRECTA INSTALACIÓN, P.U.O.T.","ML",{"$f":"354+501","v":855},null,null,0]
["C.3","RAYA SEPARADORA DE CARRIL M-2.3 COLOR BLANCO CON ANCHO DE 15 cm EN AMBOS SENTIDOS DE CIRCULACION, INCLUYE: MANO DE OBRA, EQUIPO, HERRAMIENTA, ASI COMO EL EQUIPO NECESARIO PARA SU CORRECTA INSTALACIÓN, P.U.O.T.","ML",{"$f":"480*4","v":1920},null,null,0]
["C.4","RAYA A LA ORILLA DERECHA M-3.1 COLOR BLANCO CON ANCHO DE 15 cm EN AMBOS SENTIDOS DE CIRCULACION, INCLUYE: MANO DE OBRA, EQUIPO, HERRAMIENTA, ASI COMO EL EQUIPO NECESARIO PARA SU CORRECTA INSTALACIÓN, P.U.O.T.","ML",{"$f":"480*2","v":960},null,null,0]
["C.5","RAYA PARA ENTRADAS Y SALIDAS M-4.1 COLOR BLANCO CON ANCHO DE 15 cm EN AMBOS SENTIDOS DE CIRCULACION, INCLUYE: MANO DE OBRA, EQUIPO, HERRAMIENTA, ASI COMO EL EQUIPO NECESARIO PARA SU CORRECTA INSTALACIÓN, P.U.O.T.","ML",190,null,null,{"$f":"ROUND(F141*D141,2)","v":0}]
["C.7","RAYA DE ALTO M-6 DE 60CM DE ANCHO. INCLUYE PREPARACION DE LA SUPERFICIE, LIMPIEZA, MATERIALES, MANO DE OBRA Y HERRAMIENTA, ASÍ COMO LO NECESARIO PARA SU CORRECTA APLICACIÓN, P.U.O.T.","ML",{"$f":"4.3+13","v":17.3},null,null,{"$f":"ROUND(F142*D142,2)","v":0}]
["C.8","RAYAS PARA CRUCE DE PEATONES M-7 DE 40 CM DE ANCHO Y 4M DE LARGO. INCLUYE PREPARACION DE LA SUPERFICIE, LIMPIEZA, MATERIALES, MANO DE OBRA Y HERRAMIENTA, ASÍ COMO LO NECESARIO PARA SU CORRECTA APLICACIÓN, P.U.O.T.","ML",{"$f":"10.7*2","v":21.4},null,null,{"$f":"ROUND(F143*D143,2)","v":0}]
["C.9","FLECHA SOBRE CARRILES DE 5M DE LONGITUD M-11.1. INCLUYE PREPARACION DE LA SUPERFICIE, LIMPIEZA, MATERIALES, MANO DE OBRA Y HERRAMIENTA, ASÍ COMO LO NECESARIO PARA SU CORRECTA APLICACIÓN, P.U.O.T.","PZA",17,null,null,{"$f":"ROUND(F144*D144,2)","v":0}]
["C.10","MARCAS PARA INDICAR VELOCIDAD EN EL CARRIL M-11.4. INCLUYE PREPARACION DE LA SUPERFICIE, LIMPIEZA, MATERIALES, MANO DE OBRA Y HERRAMIENTA, ASÍ COMO LO NECESARIO PARA SU CORRECTA APLICACIÓN, P.U.O.T.","PZA",7,null,null,{"$f":"ROUND(F145*D145,2)","v":0}]
["C.6","BOTÓN REFLEJANTE SOBRE EL PAVIMENTO (VIALETA) DE 10X10CM COLOR AMARILLO EN DOS CARAS BRM-A2 SOBRE RAYA M-1.1, FIJADO CON PEGAMENTO EPÓXICO PARA VIALETAS. INCLUYE: MANO DE OBRA, EQUIPO, HERRAMIENTA, ASI COMO EL EQUIPO NECESARIO PARA SU CORRECTA INSTALACIÓN, P.U.O.T.","PZA",{"$f":"D138/15+2","v":59},null,null,0]
["C.7","BOTÓN REFLEJANTE SOBRE EL PAVIMENTO (VIALETA) DE 10X10CM COLOR BLANCO EN UNA CARA BRM-B1 SOBRE RAYA M-2.3, FIJADO CON PEGAMENTO EPÓXICO PARA VIALETAS.  INCLUYE: MANO DE OBRA, EQUIPO, HERRAMIENTA, ASI COMO EL EQUIPO NECESARIO PARA SU CORRECTA INSTALACIÓN, P.U.O.T.","PZA",{"$f":"D139/30+2","v":66},null,null,0]
["C.8","BOTÓN REFLEJANTE SOBRE EL PAVIMENTO (VIALETA) DE 10X10CM COLOR BLANCO EN UNA CARA BRM-B1 SOBRE RAYA M-4.1,FIJADO CON PEGAMENTO EPÓXICO PARA VIALETAS.  INCLUYE: MANO DE OBRA, EQUIPO, HERRAMIENTA, ASI COMO EL EQUIPO NECESARIO PARA SU CORRECTA INSTALACIÓN, P.U.O.T.","PZA",{"$f":"ROUNDUP(D141/30,0)+1","v":8},null,null,0]
["C.9","BOTÓN REFLEJANTE SOBRE EL PAVIMENTO (VIALETA) DE 10X10CM COLOR BLANCO EN UNA CARA BRM-B1 SOBRE RAYA M-3.1,FIJADO CON PEGAMENTO EPÓXICO PARA VIALETAS.  INCLUYE: MANO DE OBRA, EQUIPO, HERRAMIENTA, ASI COMO EL EQUIPO NECESARIO PARA SU CORRECTA INSTALACIÓN, P.U.O.T.","PZA",{"$f":"ROUNDUP(D141/30,0)+1","v":8},null,null,{"$f":"ROUND(F149*D149,2)","v":0}]
["C.10","SUMINISTRO Y APLICACIÓN DE PINTURA VINILICA AHULADA, EN COLOR BLANCO A DOS MANOS EN GUANICIÓN  DE CONCRETO EXISTENTE LADO DERECHO, INCLUYE: PREPARACION DE LA SUPERFICIE, LIMPIEZA, MATERIALES, MANO DE OBRA Y HERRAMIENTA, ASÍ COMO LO NECESARIO PARA SU CORRECTA APLICACIÓN, P.U.O.T.","ML",{"$f":"137+47","v":184},null,null,0]
["C.11","SUMINISTRO Y APLICACIÓN DE PINTURA VINILICA AHULADA, EN COLOR AMARILLO A DOS MANOS EN GUANICIÓN CENTRAL EXISTENTE DE CONCRETO, INCLUYE: PREPARACION DE LA SUPERFICIE, LIMPIEZA, MATERIALES, MANO DE OBRA Y HERRAMIENTA, ASÍ COMO LO NECESARIO PARA SU CORRECTA APLICACIÓN, P.U.O.T.","ML",{"$f":"D139","v":1920},null,null,0]
["D","GUARNICIONES"]
["D.1","RETIRO DE GUARNICIONES DE CONCRETO EXISTENTES POR AMPLIACIÓN DE CALZADA. INCLUYE: CORTE CON CORTADORA DE DISCO, CARGA Y RETIRO DE ESCOMBRO FUERA DE LA OBRA HASTA EL LUGAR INDICADO POR LA SUPERVISION, EQUIPO, HERRAMIENTA, MANO DE OBRA Y TODO LO NECESARIO PARA LA CORRECTA EJECUCIÓN DE LOS TRABAJOS.","ML",104,null,null,0]
["D.2","CONSTRUCCION DE GUARNICIÓN DE CONCRETO F´c=150 kg/cm2. R.N. T.M.A. 19 MM. DE 15X20X40cm  DE SECCION TRAPEZOIDAL, CORTE DE JUNTAS VERTICALES CON CORTADORA DE DISCO DE DIAMANTE A UNA PROFUNDIDAD DE 1/3 DEL PERALTE DE LA GUARNICION, LA MODULACION SERÁ INDICADA POR SUPERVISIÓN, SELLADO DE LA JUNTA CON CINTILLA DE POLIETILENO Y SELLADOR AUTONIVELANTE A BASE DE  POLIURETANO-ASFALTO TIPO SONOMERIC 1 Ó SIMILAR. SUMINISTRO Y APLICACIÓN DE PINTURA VINILICA AHULADA, EN COLOR AMARILLO A DOS MANOS EN GUANICIÓN. INCLUYE: CIMBRA, DESCIMBRADO, ELABORACION, COLADO, VIBRADO Y CURADO DEL CONCRETO, TRANSPORTE A LA SIGUIENTE POSICION, EQUIPO, HERRAMIENTA, MANO DE OBRA Y TODO LO NECESARIO PARA LA CORRECTA EJECUCIÓN DE LOS TRABAJOS. P.U.O.T.","ML",{"$f":"104+215+77","v":396},null,null,{"$f":"ROUND(F154*D154,2)","v":0}]
["D.3","CONSTRUCCION DE GUARNICIÓN DE CONCRETO F´c=150 kg/cm2. R.N. T.M.A. 19 MM. DE 15X20X40cm  DE SECCION TRAPEZOIDAL, CORTE DE JUNTAS VERTICALES CON CORTADORA DE DISCO DE DIAMANTE A UNA PROFUNDIDAD DE 1/3 DEL PERALTE DE LA GUARNICION, LA MODULACION SERÁ INDICADA POR SUPERVISIÓN, SELLADO DE LA JUNTA CON CINTILLA DE POLIETILENO Y SELLADOR AUTONIVELANTE A BASE DE  POLIURETANO-ASFALTO TIPO SONOMERIC 1 Ó SIMILAR. SUMINISTRO Y APLICACIÓN DE PINTURA VINILICA AHULADA, EN COLOR BLANCO A DOS MANOS EN GUANICIÓN. INCLUYE: CIMBRA, DESCIMBRADO, ELABORACION, COLADO, VIBRADO Y CURADO DEL CONCRETO, TRANSPORTE A LA SIGUIENTE POSICION, EQUIPO, HERRAMIENTA, MANO DE OBRA Y TODO LO NECESARIO PARA LA CORRECTA EJECUCIÓN DE LOS TRABAJOS. P.U.O.T.","ML",73,null,null,{"$f":"ROUND(F155*D155,2)","v":0}]
["D.4","CONSTRUCCION DE GUARNICION DENTADA DE CONCRETO F´c=150 kg/cm2. R.N. T.M.A. 19 MM. DE 15X20X40 @60 CM INTERMITENTE, DE SECCION TRAPEZOIDAL, CORTE DE JUNTAS VERTICALES CON CORTADORA DE DISCO DE DIAMANTE A UNA PROFUNDIDAD DE 1/3 DEL PERALTE DE LA GUARNICION DENTADA, LA MODULACION SERÁ INDICADA POR SUPERVISIÓN, SELLADO DE LA JUNTA CON CINTILLA DE POLIETILENO Y SELLADOR AUTONIVELANTE A BASE DE  POLIURETANO-ASFALTO TIPO SONOMERIC 1 Ó SIMILAR. SUMINISTRO Y APLICACIÓN DE PINTURA VINILICA AHULADA, EN COLOR BLANCO A DOS MANOS EN GUANICIÓN DENTADA. INCLUYE: CIMBRA, DESCIMBRADO, ELABORACION, COLADO, VIBRADO Y CURADO DEL CONCRETO, TRANSPORTE A LA SIGUIENTE POSICION, EQUIPO, HERRAMIENTA, MANO DE OBRA Y TODO LO NECESARIO PARA LA CORRECTA EJECUCIÓN DE LOS TRABAJOS. P.U.O.T.","ML",91,null,null,{"$f":"ROUND(F156*D156,2)","v":0}]
["E","PAVIMENTOS"]
["E.1","CONSTRUCCIÓN DE BASE HIDRÁULICA, CON MATERIAL PÉTREO PROCEDENTE DE BANCO CON 100% DE TRITURACIÓN TOTAL PRODUCTO DE ROCA SANA, COMPACTADA AL 100%. INCLUYE MANO DE OBRA, MAQUINARIA, EQUIPO, HERRAMIENTA Y TODO LO REQUERIDO PARA SU CORRECTA EJECUCIÓN. P.U.O.T.","M3",{"$f":"230*0.2","v":46},null,null,{"$f":"ROUND(F158*D158,2)","v":0}]
["E.2","RIEGO DE IMPREGNACIÓN CON EMULSIÓN ASFÁLTICA CATIÓNICA ECI-60 DE ROMPIMIENTO LENTO. INCLUYE MAQUINARIA, EQUIPO, MANO DE OBRA, HERRAMIENTA Y TODO LO REQUERIDO PARA SU CORRECTA APLICACIÓN. P.U.O.T.","LT",{"$f":"1.7*230","v":391},null,null,{"$f":"ROUND(F159*D159,2)","v":0}]
["E.3","CONSTRUCCIÓN DE CARPETA ASFÁLTICA DE 5 CM DE ESPESOR CON MEZCLA EN CALIENTE, DE GRANULOMETRÍA DENSA CON MATERIALES PROCEDENTES DE BANCO QUE ELIJA EL CONTRATISTA INCLUYENDO ACARREOS COMPACTADA AL 95% CON CEMENTO ASFÁLTICO PG 70-22.  INCLUYE MANO DE OBRA, MAQUINARIA, EQUIPO, HERRAMIENTA Y TODO LO REQUERIDO PARA SU CORRECTA EJECUCIÓN. P.U.O.T.","M3",{"$f":"230*0.05","v":11.5},null,null,{"$f":"ROUND(F160*D160,2)","v":0}]
["F","POSTES"]
["F.1","REPOSICIÓN DE POSTES SOBRE CANALECÓN DE CONCRETO  ARMADO DE 20X20 CM CON LONGITUD TOTAL DE 160CM (100CM LIBRE + 60CM EMPOTRADO), ARMADO CON 4 VARILLAS NO. 3 (3/8\") Y ESTRIBOS NO. 2 (1/4\") @ 15 CM. INCLUYE EXCAVACIÓN,CIMBRA, MANO DE OBRA, MAQUINARIA, EQUIPO, HERRAMIENTA Y TODO LO REQUERIDO PARA SU CORRECTA EJECUCIÓN. P.U.O.T.","PZA",10,null,null,{"$f":"ROUND(F162*D162,2)","v":0}]
["G","TERRACERÍAS"]
["G.1","CARGA Y ACARREO PRODUCTO DE  CORTE CON MATERIAL TIPO B  INCLUYE MANO DE OBRA, MAQUINARIA, EQUIPO, HERRAMIENTA Y TODO LO REQUERIDO PARA SU CORRECTA EJECUCIÓN. P.U.O.T.","M3",{"$f":"230*0.3","v":69},null,null,{"$f":"F164*D164","v":0}]
[8,"CICLOVÍA TRAMO-3"]
["C","SEÑALAMIENTO HORIZONTAL"]
["C.2","RAYA SEPARADORA DE CARRILES CONTINUA DOBLE COLOR BLANCO CON ANCHO DE 10 cm EN AMBOS SENTIDOS DE CIRCULACION, INCLUYE: MANO DE OBRA, EQUIPO, HERRAMIENTA, ASI COMO EL EQUIPO NECESARIO PARA SU CORRECTA INSTALACIÓN, P.U.O.T.","ML",{"$f":"802.35*2","v":1604.7},null,null,{"$f":"ROUND(F167*D167,2)","v":0}]
["C.3","MARCAS PARA IDENTIFICAR VÍA CICLISTA EXCLUSIVA O DELIMITADA M-15.1 COLOR BLANCO INCLUYE MATERIALES, MANO DE OBRA Y HERRAMIENTA, ASÍ COMO LO NECESARIO PARA SU CORRECTA APLICACIÓN, P.U.O.T.","PZA",32,null,null,{"$f":"ROUND(F168*D168,2)","v":0}]
["C.4","RAYAS PARA CRUCE DE CICLISTAS  M-15.5. INCLUYE PREPARACION DE LA SUPERFICIE, LIMPIEZA, MATERIALES, MANO DE OBRA Y HERRAMIENTA, ASÍ COMO LO NECESARIO PARA SU CORRECTA APLICACIÓN, P.U.O.T.","ML",{"$f":"12*9","v":108},null,null,{"$f":"ROUND(F169*D169,2)","v":0}]
["C.5","DELIMITADOR PARA CONFINAMIENTO DE CARRIL EXCLUSIVO DE 15X25CM @1.20M. INCLUYE: MANO DE OBRA, EQUIPO, HERRAMIENTA, ASI COMO EL EQUIPO NECESARIO PARA SU CORRECTA INSTALACIÓN, P.U.O.T.","PZA",{"$f":"(ROUNDDOWN(802.35/(1.2+0.25),0)+1)*2","v":1108},null,null,{"$f":"ROUND(F170*D170,2)","v":0}]
["C.6","BOTÓN METÁLICO DH-1 DE 10 CM Y 2 CM DE ALTURA . @1.50M EN CRUCES INCLUYE: MANO DE OBRA, EQUIPO, HERRAMIENTA, ASI COMO EL EQUIPO NECESARIO PARA SU CORRECTA INSTALACIÓN, P.U.O.T.","PZA",{"$f":"(12/1.5+1)*9","v":81},null,null,{"$f":"ROUND(F171*D171,2)","v":0}]
[9,"PRIMARIA IGNACIO LÓPEZ RAYÓN"]
["A","REDUCTOR DE VELOCIDAD CONCRETO ASFÁLTICO"]
["A.1","CONSTRUCCIÓN DE REDUCTOR DE VELOCIDAD CON MEZCLA ASFÁLTICA EN FRÍO, TIPO TRAPEZOIDAL CON MEDIDAS DE 4.80x10.6x0.12m, PINTADO CON RAYAS DIAGONALES CONFORME A NORMATIVA. INCLUYE: MANO DE OBRA, MATERIAL, EQUIPO Y HERRAMIENTA PARA SU CORRECTA INSTALACION. P.U.O.T.","M3",11.16,null,null,{"$f":"ROUND(F174*D174,2)","v":0}]
["B","SEÑALAMIENTO VERTICAL"]
["B.1","SUMINISTRO E INSTALACION DE SEÑALAMIENTO TIPO SP-41 CON DIMENSIONES DE 61x61cm CON LAMINA GALVANIZADA CALIBRE 16, INCLUYE: MANO DE OBRA, MATERIALES,  EQUIPO  Y HERRAMIENTA NECESARIA PARA LA CORRECTA INSTALACIÓN. P.U.O.T.","PZA",2,null,null,{"$f":"ROUND(F176*D176,2)","v":0}]
["B.2","SUMINISTRO E INSTALACION DE SEÑALAMIENTO TIPO SP-41B CON DIMENSIONES DE 61x61cm CON LAMINA GALVANIZADA CALIBRE 16, INCLUYE: MANO DE OBRA, MATERIALES,  EQUIPO  Y HERRAMIENTA NECESARIA PARA LA CORRECTA INSTALACIÓN P.U.O.T.","PZA",2,null,null,{"$f":"ROUND(F177*D177,2)","v":0}]
["B.3","SUMINISTRO E INSTALACION DE SEÑALAMIENTO TIPO SP-A CON DIMENSIONES DE 85x20cm CON LAMINA GALVANIZADA CALIBRE 16,  INCLUYE: MANO DE OBRA, MATERIALES,  EQUIPO  Y HERRAMIENTA NECESARIA PARA LA CORRECTA INSTALACIÓN P.U.O.T.","PZA",2,null,null,{"$f":"ROUND(F178*D178,2)","v":0}]
["C","SEÑALAMIENTO HORIZONTAL"]
["C.1","RAYA SEPARADORA DE SENTIDOS DE CIRCULACIÓN M-1.1 COLOR AMARILLO CON ANCHO DE 15 cm EN AMBOS SENTIDOS DE CIRCULACION, INCLUYE: MANO DE OBRA, EQUIPO, HERRAMIENTA, ASI COMO EL EQUIPO NECESARIO PARA SU CORRECTA INSTALACIÓN, P.U.O.T.","ML",100,null,null,{"$f":"ROUND(F180*D180,2)","v":0}]
["C.2","RAYA A LA ORILLA DERECHA M-3.1 COLOR BLANCO CON ANCHO DE 15 cm EN AMBOS SENTIDOS DE CIRCULACION, INCLUYE: MANO DE OBRA, EQUIPO, HERRAMIENTA, ASI COMO EL EQUIPO NECESARIO PARA SU CORRECTA INSTALACIÓN, P.U.O.T.","ML",200,null,null,0]
["C.3","BOTÓN REFLEJANTE SOBRE EL PAVIMENTO (VIALETA) DE 10X10CM COLOR AMARILLO EN DOS CARAS BRM-A2 SOBRE RAYA M-1.1, FIJADO CON PEGAMENTO EPÓXICO PARA VIALETAS. INCLUYE: MANO DE OBRA, EQUIPO, HERRAMIENTA, ASI COMO EL EQUIPO NECESARIO PARA SU CORRECTA INSTALACIÓN, P.U.O.T.","PZA",{"$f":"ROUNDDOWN(D180/15,0)+2","v":8},null,null,0]
["C.4","BOTÓN REFLEJANTE SOBRE EL PAVIMENTO (VIALETA) DE 10X10CM COLOR BLANCO EN UNA CARA BRM-B1 SOBRE RAYA M-3.1,FIJADO CON PEGAMENTO EPÓXICO PARA VIALETAS.  INCLUYE: MANO DE OBRA, EQUIPO, HERRAMIENTA, ASI COMO EL EQUIPO NECESARIO PARA SU CORRECTA INSTALACIÓN, P.U.O.T.","PZA",{"$f":"ROUNDDOWN(D181/30,0)+2","v":8},null,null,0]
["C.5","SUMINISTRO Y APLICACIÓN DE PINTURA VINILICA AHULADA, EN COLOR BLANCO A DOS MANOS EN GUANICIÓN  DE CONCRETO EXISTENTE LADO DERECHO, INCLUYE: PREPARACION DE LA SUPERFICIE, LIMPIEZA, MATERIALES, MANO DE OBRA Y HERRAMIENTA, ASÍ COMO LO NECESARIO PARA SU CORRECTA APLICACIÓN, P.U.O.T.","ML",100,null,null,0]
["C.6","SUMINISTRO Y APLICACIÓN DE PINTURA VINILICA AHULADA, EN COLOR AMARILLO A DOS MANOS EN GUANICIÓN CENTRAL EXISTENTE DE CONCRETO, INCLUYE: PREPARACION DE LA SUPERFICIE, LIMPIEZA, MATERIALES, MANO DE OBRA Y HERRAMIENTA, ASÍ COMO LO NECESARIO PARA SU CORRECTA APLICACIÓN, P.U.O.T.","ML",200,null,null,0]
[10,"AV. LA PAZ - SAN ANTONIO (BELLAVISTA)"]
["A","REDUCTOR DE VELOCIDAD CONCRETO ASFÁLTICO"]
["A.1","CONSTRUCCIÓN DE REDUCTOR DE VELOCIDAD CON MEZCLA ASFÁLTICA EN FRÍO, TIPO TRAPEZOIDAL CON MEDIDAS DE 4.80x10.6x0.12m, PINTADO CON RAYAS DIAGONALES CONFORME A NORMATIVA. INCLUYE: MANO DE OBRA, MATERIAL, EQUIPO Y HERRAMIENTA PARA SU CORRECTA INSTALACION. P.U.O.T.","M3",{"$f":"7.47+7.56","v":15.03},null,null,{"$f":"ROUND(F188*D188,2)","v":0}]
["B","SEÑALAMIENTO VERTICAL"]
["B.1","SUMINISTRO E INSTALACION DE SEÑALAMIENTO TIPO SP-41 CON DIMENSIONES DE 61x61cm CON LAMINA GALVANIZADA CALIBRE 16, INCLUYE: MANO DE OBRA, MATERIALES,  EQUIPO  Y HERRAMIENTA NECESARIA PARA LA CORRECTA INSTALACIÓN. P.U.O.T.","PZA",4,null,null,{"$f":"ROUND(F190*D190,2)","v":0}]
["B.2","SUMINISTRO E INSTALACION DE SEÑALAMIENTO TIPO SP-41B CON DIMENSIONES DE 61x61cm CON LAMINA GALVANIZADA CALIBRE 16, INCLUYE: MANO DE OBRA, MATERIALES,  EQUIPO  Y HERRAMIENTA NECESARIA PARA LA CORRECTA INSTALACIÓN P.U.O.T.","PZA",4,null,null,{"$f":"ROUND(F191*D191,2)","v":0}]
["B.3","SUMINISTRO E INSTALACION DE SEÑALAMIENTO TIPO SP-A CON DIMENSIONES DE 85x20cm CON LAMINA GALVANIZADA CALIBRE 16,  INCLUYE: MANO DE OBRA, MATERIALES,  EQUIPO  Y HERRAMIENTA NECESARIA PARA LA CORRECTA INSTALACIÓN P.U.O.T.","PZA",4,null,null,{"$f":"ROUND(F192*D192,2)","v":0}]
["C","SEÑALAMIENTO HORIZONTAL"]
["C.1","RAYA SEPARADORA DE SENTIDOS DE CIRCULACIÓN M-1.1 COLOR AMARILLO CON ANCHO DE 15 cm EN AMBOS SENTIDOS DE CIRCULACION, INCLUYE: MANO DE OBRA, EQUIPO, HERRAMIENTA, ASI COMO EL EQUIPO NECESARIO PARA SU CORRECTA INSTALACIÓN, P.U.O.T.","ML",100,null,null,{"$f":"ROUND(F194*D194,2)","v":0}]
["C.2","RAYA A LA ORILLA DERECHA M-3.1 COLOR BLANCO CON ANCHO DE 15 cm EN AMBOS SENTIDOS DE CIRCULACION, INCLUYE: MANO DE OBRA, EQUIPO, HERRAMIENTA, ASI COMO EL EQUIPO NECESARIO PARA SU CORRECTA INSTALACIÓN, P.U.O.T.","ML",200,null,null,0]
["C.3","BOTÓN REFLEJANTE SOBRE EL PAVIMENTO (VIALETA) DE 10X10CM COLOR AMARILLO EN DOS CARAS BRM-A2 SOBRE RAYA M-1.1, FIJADO CON PEGAMENTO EPÓXICO PARA VIALETAS. INCLUYE: MANO DE OBRA, EQUIPO, HERRAMIENTA, ASI COMO EL EQUIPO NECESARIO PARA SU CORRECTA INSTALACIÓN, P.U.O.T.","PZA",{"$f":"ROUNDDOWN(D194/15,0)+2","v":8},null,null,0]
["C.4","BOTÓN REFLEJANTE SOBRE EL PAVIMENTO (VIALETA) DE 10X10CM COLOR BLANCO EN UNA CARA BRM-B1 SOBRE RAYA M-3.1,FIJADO CON PEGAMENTO EPÓXICO PARA VIALETAS.  INCLUYE: MANO DE OBRA, EQUIPO, HERRAMIENTA, ASI COMO EL EQUIPO NECESARIO PARA SU CORRECTA INSTALACIÓN, P.U.O.T.","PZA",{"$f":"ROUNDDOWN(D195/30,0)+2","v":8},null,null,0]
["C.5","SUMINISTRO Y APLICACIÓN DE PINTURA VINILICA AHULADA, EN COLOR BLANCO A DOS MANOS EN GUANICIÓN  DE CONCRETO EXISTENTE LADO DERECHO, INCLUYE: PREPARACION DE LA SUPERFICIE, LIMPIEZA, MATERIALES, MANO DE OBRA Y HERRAMIENTA, ASÍ COMO LO NECESARIO PARA SU CORRECTA APLICACIÓN, P.U.O.T.","ML",100,null,null,0]
["C.6","SUMINISTRO Y APLICACIÓN DE PINTURA VINILICA AHULADA, EN COLOR AMARILLO A DOS MANOS EN GUANICIÓN CENTRAL EXISTENTE DE CONCRETO, INCLUYE: PREPARACION DE LA SUPERFICIE, LIMPIEZA, MATERIALES, MANO DE OBRA Y HERRAMIENTA, ASÍ COMO LO NECESARIO PARA SU CORRECTA APLICACIÓN, P.U.O.T.","ML",200,null,null,0]
[11,"UNIÓN Y EDUCACIÓN LAICA"]
["A","REDUCTOR DE VELOCIDAD CONCRETO ASFÁLTICO"]
["A.1","CONSTRUCCIÓN DE REDUCTOR DE VELOCIDAD CON MEZCLA ASFÁLTICA EN FRÍO, TIPO TRAPEZOIDAL CON MEDIDAS DE 4.80x10.6x0.12m, PINTADO CON RAYAS DIAGONALES CONFORME A NORMATIVA. INCLUYE: MANO DE OBRA, MATERIAL, EQUIPO Y HERRAMIENTA PARA SU CORRECTA INSTALACION. P.U.O.T.","M3",8.5500000000000007,null,null,{"$f":"ROUND(F202*D202,2)","v":0}]
["B","SEÑALAMIENTO VERTICAL"]
["B.1","SUMINISTRO E INSTALACION DE SEÑALAMIENTO TIPO SP-41 CON DIMENSIONES DE 61x61cm CON LAMINA GALVANIZADA CALIBRE 16, INCLUYE: MANO DE OBRA, MATERIALES,  EQUIPO  Y HERRAMIENTA NECESARIA PARA LA CORRECTA INSTALACIÓN. P.U.O.T.","PZA",2,null,null,{"$f":"ROUND(F204*D204,2)","v":0}]
["B.2","SUMINISTRO E INSTALACION DE SEÑALAMIENTO TIPO SP-41B CON DIMENSIONES DE 61x61cm CON LAMINA GALVANIZADA CALIBRE 16, INCLUYE: MANO DE OBRA, MATERIALES,  EQUIPO  Y HERRAMIENTA NECESARIA PARA LA CORRECTA INSTALACIÓN P.U.O.T.","PZA",2,null,null,{"$f":"ROUND(F205*D205,2)","v":0}]
["B.3","SUMINISTRO E INSTALACION DE SEÑALAMIENTO TIPO SP-A CON DIMENSIONES DE 85x20cm CON LAMINA GALVANIZADA CALIBRE 16,  INCLUYE: MANO DE OBRA, MATERIALES,  EQUIPO  Y HERRAMIENTA NECESARIA PARA LA CORRECTA INSTALACIÓN P.U.O.T.","PZA",2,null,null,{"$f":"ROUND(F206*D206,2)","v":0}]
["B.3","SUMINISTRO E INSTALACION DE SEÑALAMIENTO TIPO SP-33 CON DIMENSIONES DE 71x71cm CON LAMINA GALVANIZADA CALIBRE 16,  INCLUYE: MANO DE OBRA, MATERIALES,  EQUIPO  Y HERRAMIENTA NECESARIA PARA LA CORRECTA INSTALACIÓN P.U.O.T.","PZA",2,null,null,{"$f":"ROUND(F207*D207,2)","v":0}]
["C","SEÑALAMIENTO HORIZONTAL"]
["C.1","RAYA SEPARADORA DE SENTIDOS DE CIRCULACIÓN M-1.1 COLOR AMARILLO CON ANCHO DE 15 cm EN AMBOS SENTIDOS DE CIRCULACION, INCLUYE: MANO DE OBRA, EQUIPO, HERRAMIENTA, ASI COMO EL EQUIPO NECESARIO PARA SU CORRECTA INSTALACIÓN, P.U.O.T.","ML",100,null,null,{"$f":"ROUND(F209*D209,2)","v":0}]
["C.2","RAYA A LA ORILLA DERECHA M-3.1 COLOR BLANCO CON ANCHO DE 15 cm EN AMBOS SENTIDOS DE CIRCULACION, INCLUYE: MANO DE OBRA, EQUIPO, HERRAMIENTA, ASI COMO EL EQUIPO NECESARIO PARA SU CORRECTA INSTALACIÓN, P.U.O.T.","ML",200,null,null,0]
["C.3","BOTÓN REFLEJANTE SOBRE EL PAVIMENTO (VIALETA) DE 10X10CM COLOR AMARILLO EN DOS CARAS BRM-A2 SOBRE RAYA M-1.1, FIJADO CON PEGAMENTO EPÓXICO PARA VIALETAS. INCLUYE: MANO DE OBRA, EQUIPO, HERRAMIENTA, ASI COMO EL EQUIPO NECESARIO PARA SU CORRECTA INSTALACIÓN, P.U.O.T.","PZA",{"$f":"ROUNDDOWN(D209/15,0)+2","v":8},null,null,0]
["C.4","BOTÓN REFLEJANTE SOBRE EL PAVIMENTO (VIALETA) DE 10X10CM COLOR BLANCO EN UNA CARA BRM-B1 SOBRE RAYA M-3.1,FIJADO CON PEGAMENTO EPÓXICO PARA VIALETAS.  INCLUYE: MANO DE OBRA, EQUIPO, HERRAMIENTA, ASI COMO EL EQUIPO NECESARIO PARA SU CORRECTA INSTALACIÓN, P.U.O.T.","PZA",{"$f":"ROUNDDOWN(D210/30,0)+2","v":8},null,null,0]
["C.5","SUMINISTRO Y APLICACIÓN DE PINTURA VINILICA AHULADA, EN COLOR BLANCO A DOS MANOS EN GUANICIÓN  DE CONCRETO EXISTENTE LADO DERECHO, INCLUYE: PREPARACION DE LA SUPERFICIE, LIMPIEZA, MATERIALES, MANO DE OBRA Y HERRAMIENTA, ASÍ COMO LO NECESARIO PARA SU CORRECTA APLICACIÓN, P.U.O.T.","ML",100,null,null,0]
["C.6","SUMINISTRO Y APLICACIÓN DE PINTURA VINILICA AHULADA, EN COLOR AMARILLO A DOS MANOS EN GUANICIÓN CENTRAL EXISTENTE DE CONCRETO, INCLUYE: PREPARACION DE LA SUPERFICIE, LIMPIEZA, MATERIALES, MANO DE OBRA Y HERRAMIENTA, ASÍ COMO LO NECESARIO PARA SU CORRECTA APLICACIÓN, P.U.O.T.","ML",200,null,null,0]
[12,"BLVD. FORJADORES DE SUDCALIFORNIA Y BAHÍA CONCEPCIÓN"]
["B","SEÑALAMIENTO VERTICAL"]
["B.1","SUMINISTRO E INSTALACION DE SEÑALAMIENTO TIPO SP-41 CON DIMENSIONES DE 86x86cm CON LAMINA GALVANIZADA CALIBRE 16, INCLUYE: MANO DE OBRA, MATERIALES,  EQUIPO  Y HERRAMIENTA NECESARIA PARA LA CORRECTA INSTALACIÓN. P.U.O.T.","PZA",8,null,null,{"$f":"ROUND(F217*D217,2)","v":0}]
["B.2","SUMINISTRO E INSTALACION DE SEÑALAMIENTO TIPO SP-41B CON DIMENSIONES DE 86x86cm CON LAMINA GALVANIZADA CALIBRE 16, INCLUYE: MANO DE OBRA, MATERIALES,  EQUIPO  Y HERRAMIENTA NECESARIA PARA LA CORRECTA INSTALACIÓN P.U.O.T.","PZA",4,null,null,0]
["B.3","SUMINISTRO E INSTALACION DE SEÑALAMIENTO TIPO SR-9 (50 KM/HR) CON DIMENSIONES DE 86x86cm CON LAMINA GALVANIZADA CALIBRE 16,  INCLUYE: MANO DE OBRA, MATERIALES,  EQUIPO  Y HERRAMIENTA NECESARIA PARA LA CORRECTA INSTALACIÓN P.U.O.T.","PZA",4,null,null,0]
["B.4","SUMINISTRO E INSTALACION DE SEÑALAMIENTO TIPO SR-9 (30 KM/HR) CON DIMENSIONES DE 86x86cm CON LAMINA GALVANIZADA CALIBRE 16,  INCLUYE: MANO DE OBRA, MATERIALES,  EQUIPO  Y HERRAMIENTA NECESARIA PARA LA CORRECTA INSTALACIÓN P.U.O.T.","PZA",4,null,null,0]
["B.5","SUMINISTRO E INSTALACION DE SEÑALAMIENTO TIPO SP-11 CON DIMENSIONES DE 86x86cm CON LAMINA GALVANIZADA CALIBRE 16,  INCLUYE: MANO DE OBRA, MATERIALES,  EQUIPO  Y HERRAMIENTA NECESARIA PARA LA CORRECTA INSTALACIÓN P.U.O.T.","PZA",8,null,null,0]
["B.6","SUMINISTRO E INSTALACION DE SEÑALAMIENTO TIPO SP-A CON DIMENSIONES DE 122x30cm CON LAMINA GALVANIZADA CALIBRE 16,  INCLUYE: MANO DE OBRA, MATERIALES,  EQUIPO  Y HERRAMIENTA NECESARIA PARA LA CORRECTA INSTALACIÓN P.U.O.T.","PZA",16,null,null,0]
["B.7","SUMINISTRO E INSTALACION DE SEÑALAMIENTO TIPO SR-6 CON DIMENSIONES DE 30cm POR LADO CON LAMINA GALVANIZADA CALIBRE 16, INCLUYE: MANO DE OBRA, MATERIALES,  EQUIPO  Y HERRAMIENTA NECESARIA PARA LA CORRECTA INSTALACIÓN. P.U.O.T.","PZA",2,null,null,0]
["B.8","SUMINISTRO E INSTALACION DE SEÑALAMIENTO TIPO SII-NOMENCLATURA CON LAMINA GALVANIZADA CALIBRE 16, INCLUYE: MANO DE OBRA, MATERIALES,  EQUIPO  Y HERRAMIENTA NECESARIA PARA LA CORRECTA INSTALACIÓN. P.U.O.T.","PZA",4,null,null,0]
["C","SEÑALAMIENTO HORIZONTAL"]
["C.1","RAYAS CON ESPACIAMIENTO LOGARITMICO REALZADAS CON MEZCLA ASFÁLTICA Y PINTADAS  M-9 TIPO 30/20 COLOR BLANCO CON ANCHO DE 60 CM Y 1 CM DE ESPESOR EN AMBOS SENTIDOS DE CIRCULACION PREVIO AL REDUCTOR DE VELOCIDAD, INCLUYE: MANO DE OBRA, HERRAMIENTA, EQUIPO MENOR ASI COMO EL EQUIPO NECESARIO  PARA SU CORRECTA INSTALACIÓN. P.U.O.T.","ML",{"$f":"(15.4+16)*20","v":628},null,null,{"$f":"ROUND(F226*D226,2)","v":0}]
["C.2","RAYA SEPARADORA DE SENTIDOS DE CIRCULACIÓN M-1.1 COLOR AMARILLO CON ANCHO DE 15 cm EN AMBOS SENTIDOS DE CIRCULACION, INCLUYE: MANO DE OBRA, EQUIPO, HERRAMIENTA, ASI COMO EL EQUIPO NECESARIO PARA SU CORRECTA INSTALACIÓN, P.U.O.T.","ML",400,null,null,0]
["C.3","RAYA SEPARADORA DE CARRIL M-2.3 COLOR BLANCO CON ANCHO DE 15 cm EN AMBOS SENTIDOS DE CIRCULACION, INCLUYE: MANO DE OBRA, EQUIPO, HERRAMIENTA, ASI COMO EL EQUIPO NECESARIO PARA SU CORRECTA INSTALACIÓN, P.U.O.T.","ML",1000,null,null,0]
["C.4","RAYA A LA ORILLA DERECHA M-3.1 COLOR BLANCO CON ANCHO DE 15 cm EN AMBOS SENTIDOS DE CIRCULACION, INCLUYE: MANO DE OBRA, EQUIPO, HERRAMIENTA, ASI COMO EL EQUIPO NECESARIO PARA SU CORRECTA INSTALACIÓN, P.U.O.T.","ML",500,null,null,0]
["C.5","RAYA PARA ENTRADAS Y SALIDAS M-4.1 COLOR BLANCO CON ANCHO DE 15 cm EN AMBOS SENTIDOS DE CIRCULACION, INCLUYE: MANO DE OBRA, EQUIPO, HERRAMIENTA, ASI COMO EL EQUIPO NECESARIO PARA SU CORRECTA INSTALACIÓN, P.U.O.T.","ML",80,null,null,0]
["C.7","RAYA DE ALTO M-6 DE 60CM DE ANCHO. INCLUYE PREPARACION DE LA SUPERFICIE, LIMPIEZA, MATERIALES, MANO DE OBRA Y HERRAMIENTA, ASÍ COMO LO NECESARIO PARA SU CORRECTA APLICACIÓN, P.U.O.T.","ML",7,null,null,0]
["C.8","RAYAS PARA CRUCE DE PEATONES M-7 DE 40 CM DE ANCHO Y 4M DE LARGO. INCLUYE PREPARACION DE LA SUPERFICIE, LIMPIEZA, MATERIALES, MANO DE OBRA Y HERRAMIENTA, ASÍ COMO LO NECESARIO PARA SU CORRECTA APLICACIÓN, P.U.O.T.","ML",{"$f":"20*2+37*2","v":114},null,null,0]
["C.9","FLECHA SOBRE CARRILES DE 5M DE LONGITUD M-11.1. INCLUYE PREPARACION DE LA SUPERFICIE, LIMPIEZA, MATERIALES, MANO DE OBRA Y HERRAMIENTA, ASÍ COMO LO NECESARIO PARA SU CORRECTA APLICACIÓN, P.U.O.T.","PZA",14,null,null,0]
["C.10","MARCAS PARA INDICAR VELOCIDAD EN EL CARRIL M-11.4. INCLUYE PREPARACION DE LA SUPERFICIE, LIMPIEZA, MATERIALES, MANO DE OBRA Y HERRAMIENTA, ASÍ COMO LO NECESARIO PARA SU CORRECTA APLICACIÓN, P.U.O.T.","PZA",7,null,null,0]
["C.6","BOTÓN REFLEJANTE SOBRE EL PAVIMENTO (VIALETA) DE 10X10CM COLOR AMARILLO EN DOS CARAS BRM-A2 SOBRE RAYA M-1.1, FIJADO CON PEGAMENTO EPÓXICO PARA VIALETAS. INCLUYE: MANO DE OBRA, EQUIPO, HERRAMIENTA, ASI COMO EL EQUIPO NECESARIO PARA SU CORRECTA INSTALACIÓN, P.U.O.T.","PZA",{"$f":"ROUNDDOWN(D227/15,0)+2","v":28},null,null,0]
["C.7","BOTÓN REFLEJANTE SOBRE EL PAVIMENTO (VIALETA) DE 10X10CM COLOR BLANCO EN UNA CARA BRM-B1 SOBRE RAYA M-2.3, FIJADO CON PEGAMENTO EPÓXICO PARA VIALETAS.  INCLUYE: MANO DE OBRA, EQUIPO, HERRAMIENTA, ASI COMO EL EQUIPO NECESARIO PARA SU CORRECTA INSTALACIÓN, P.U.O.T.","PZA",{"$f":"ROUNDDOWN(D228/30,0)+2","v":35},null,null,0]
["C.8","BOTÓN REFLEJANTE SOBRE EL PAVIMENTO (VIALETA) DE 10X10CM COLOR BLANCO EN UNA CARA BRM-B1 SOBRE RAYA M-4.1,FIJADO CON PEGAMENTO EPÓXICO PARA VIALETAS.  INCLUYE: MANO DE OBRA, EQUIPO, HERRAMIENTA, ASI COMO EL EQUIPO NECESARIO PARA SU CORRECTA INSTALACIÓN, P.U.O.T.","PZA",{"$f":"ROUNDUP(D230/30,0)+1","v":4},null,null,0]
["C.9","BOTÓN REFLEJANTE SOBRE EL PAVIMENTO (VIALETA) DE 10X10CM COLOR BLANCO EN UNA CARA BRM-B1 SOBRE RAYA M-3.1,FIJADO CON PEGAMENTO EPÓXICO PARA VIALETAS.  INCLUYE: MANO DE OBRA, EQUIPO, HERRAMIENTA, ASI COMO EL EQUIPO NECESARIO PARA SU CORRECTA INSTALACIÓN, P.U.O.T.","PZA",{"$f":"ROUNDUP(D230/30,0)+1","v":4},null,null,0]
["C.10","SUMINISTRO Y APLICACIÓN DE PINTURA VINILICA AHULADA, EN COLOR BLANCO A DOS MANOS EN GUANICIÓN  DE CONCRETO EXISTENTE LADO DERECHO, INCLUYE: PREPARACION DE LA SUPERFICIE, LIMPIEZA, MATERIALES, MANO DE OBRA Y HERRAMIENTA, ASÍ COMO LO NECESARIO PARA SU CORRECTA APLICACIÓN, P.U.O.T.","ML",{"$f":"137+47","v":184},null,null,0]
["C.11","SUMINISTRO Y APLICACIÓN DE PINTURA VINILICA AHULADA, EN COLOR AMARILLO A DOS MANOS EN GUANICIÓN CENTRAL EXISTENTE DE CONCRETO, INCLUYE: PREPARACION DE LA SUPERFICIE, LIMPIEZA, MATERIALES, MANO DE OBRA Y HERRAMIENTA, ASÍ COMO LO NECESARIO PARA SU CORRECTA APLICACIÓN, P.U.O.T.","ML",300,null,null,0]
["D","GUARNICIONES"]
["D.2","CONSTRUCCION DE GUARNICIÓN DE CONCRETO F´c=150 kg/cm2. R.N. T.M.A. 19 MM. DE 15X20X40cm  DE SECCION TRAPEZOIDAL, CORTE DE JUNTAS VERTICALES CON CORTADORA DE DISCO DE DIAMANTE A UNA PROFUNDIDAD DE 1/3 DEL PERALTE DE LA GUARNICION, LA MODULACION SERÁ INDICADA POR SUPERVISIÓN, SELLADO DE LA JUNTA CON CINTILLA DE POLIETILENO Y SELLADOR AUTONIVELANTE A BASE DE  POLIURETANO-ASFALTO TIPO SONOMERIC 1 Ó SIMILAR. SUMINISTRO Y APLICACIÓN DE PINTURA VINILICA AHULADA, EN COLOR AMARILLO A DOS MANOS EN GUANICIÓN. INCLUYE: CIMBRA, DESCIMBRADO, ELABORACION, COLADO, VIBRADO Y CURADO DEL CONCRETO, TRANSPORTE A LA SIGUIENTE POSICION, EQUIPO, HERRAMIENTA, MANO DE OBRA Y TODO LO NECESARIO PARA LA CORRECTA EJECUCIÓN DE LOS TRABAJOS. P.U.O.T.","ML",{"$f":"222+15*2","v":252},null,null,{"$f":"ROUND(F242*D242,2)","v":0}]
["III","PLACA DE OBRA"]
["III.1","CONSTRUCCION  DE BASE PARA PLACA CON MEDIDAS DE 0.80 X 1.20 MTS. DE CONCRETO F'C=200 KG/CM2, REFORZADA CON VARILLA DE 3/8\" A CADA 20CM EN AMBOS SENTIDOS, ACABADO APARENTE, EL COLOR DEBERA ESTAR INTEGRADO EN EL CONCRETO; INCLUYE: SUMINISTRO DE TODOS LOS MATERIALES,  ACCESORIOS, DESPERDICIOS, ACARREOS, MANO DE OBRA, HERRAMIENTA Y EQUIPO (PARA EL CORRECTO ANALISIS DE ESTE CONCEPTO, VER DETALLE EN PLANO).","PZA",1,null,null,{"$f":"ROUND(F244*D244,2)","v":0}]
["III.2","SUMINISTRO E INSTALACION DE PLACA DE OBRA, DE 60 X 45 CM, CON INFORMACION DE LA OBRA GRABADA EN LA PLACA DE GRANITO COLOR ARENA CON LETRAS EN RELIEVE, PLACA COLOCADA CON ADHESIVO TIPO PEGAVITRO O SIMILAR; INCLUYE: SUMINISTRO DE TODOS LOS MATERIALES,  ACCESORIOS, DESPERDICIOS, ACARREOS, MANO DE OBRA, HERRAMIENTA Y EQUIPO (PARA EL CORRECTO ANALISIS DE ESTE CONCEPTO, VER DETALLE EN PLANO).","PZA",1,null,null,0]
[]
[null,null,null,null,null,"SUBTOTAL ",{"$f":"SUM(G27:G246)","v":0}]
[null,null,null,null,null,"IVA 16%",{"$f":"G247*0.16","v":0}]
[null,null,null,null,null,"TOTAL",{"$f":"SUM(G247:G248)","v":0}]